bitfinex-derivatives/quotes_ETHF0:USTF0_20250602
["timestamp","ask_amount","ask_price","bid_price","bid_amount"]
[1748859346533,3.2078,2488.3,2488.2,2.18921]
[1748859346723,4.01118,2488.3,2488.2,2.18921]
[1748859347928,4.01118,2488.3,2488.2,1.3858]
[1748859349526,4.01118,2488.3,2488.2,2.18921]
[1748859349926,4.01118,2488.3,2488.2,1.3858]
[1748859350328,4.01118,2488.3,2488.2,3.36036312]
[1748859350528,4.01118,2488.3,2488.2,2.55695312]
[1748859350933,4.01118,2488.3,2488.2,3.36036312]
[1748859352433,4.01118,2488.3,2488.2,3.3613649]
[1748859352829,4.01118,2488.3,2488.2,2.5579549]
[1748859353029,4.01118,2488.3,2488.2,3.3613649]
[1748859356434,4.01118,2488.3,2488.2,3.36504632]
[1748859356932,3.2078,2488.3,2488.2,4.96577134]
[1748859357125,3.2078,2488.3,2488.2,3.36504632]
[1748859357330,3.2078,2488.3,2488.2,5.75130361]
[1748859358137,0.80938258,2488.4,2488.3,2.16038]
[1748859358334,0.80938258,2488.4,2488.3,6.31198846]
[1748859358939,1.41178258,2488.4,2488.3,6.31198846]
[1748859360434,1.41178258,2488.4,2488.3,4.13217659]
[1748859360631,2.71028258,2488.4,2488.3,2.53210445]
[1748859361731,2.71028258,2488.4,2488.3,1.17510445]
[1748859362932,0.80344,2488.1,2488.0,0.00603258]
[1748859363236,4.01124,2488.1,2488.0,0.00603258]
[1748859363628,0.8036,2487.6,2487.5,8.10748214]
[1748859364032,0.8036,2487.6,2487.5,7.30387214]
[1748859364342,0.80376,2487.2,2487.0,0.80378]
[1748859364541,22.3258,2487.1,2486.9,0.00603258]
[1748859364743,0.8038,2487.0,2486.9,0.00603258]
[1748859365038,19.119,2487.0,2486.9,0.80986258]
[1748859365831,19.9228,2487.0,2486.9,0.00603258]
[1748859366235,21.3205,2487.0,2486.9,0.00603258]
[1748859366439,1.1116,2487.1,2486.9,0.00603258]
[1748859366636,19.118,2487.0,2486.9,0.80984258]
[1748859366941,19.92075,2487.2,2487.0,0.8038]
[1748859367137,19.92075,2487.2,2487.1,1.285]
[1748859367736,19.92375,2487.2,2487.1,1.285]
[1748859368639,0.80375,2487.2,2487.1,1.285]
[1748859368841,19.92272,2487.3,2487.2,0.80373]
[1748859369043,3.2078,2487.4,2487.3,0.8037]
[1748859369238,22.3258,2487.4,2487.3,0.8037]
[1748859369438,23.12947,2487.4,2487.3,0.8037]
[1748859369644,23.12947,2487.4,2487.3,1.286]
[1748859370736,4.01147,2487.4,2487.3,1.286]
[1748859371342,0.8037,2487.3,2487.2,1.0562]
[1748859371735,0.8037,2487.3,2487.2,3.14593]
[1748859372237,2.00936,2487.2,2486.0,6.38916556]
[1748859372442,0.80395,2486.6,2486.5,0.80395]
[1748859372644,0.80396,2486.5,2486.4,0.80397]
[1748859373043,0.80395,2486.6,2486.5,0.80396]
[1748859373438,0.80391,2486.7,2486.6,0.8039]
[1748859373939,0.80396,2486.6,2486.5,0.80394]
[1748859374341,0.80399,2486.5,2486.4,0.80397]
[1748859375243,0.80399,2486.4,2486.3,3.21383258]
[1748859375442,0.80399,2486.4,2486.3,4.01786258]
[1748859375841,0.80398,2486.5,2486.4,0.80396]
[1748859376435,0.80399,2486.4,2486.3,3.21383258]
[1748859376639,2.16409,2486.4,2486.3,4.01785258]
[1748859377049,2.16409,2486.4,2486.3,3.21383258]
[1748859377350,2.16409,2486.4,2486.3,4.01786258]
[1748859377555,2.16409,2486.4,2486.3,3.21383258]
[1748859378045,2.16409,2486.4,2486.3,4.01786258]
[1748859378746,2.16409,2486.4,2486.3,0.81006258]
[1748859382048,2.16409,2486.4,2486.3,0.00603258]
[1748859383550,6.3601,2486.4,2483.3,12.7254622]
[1748859383738,3.2078,2484.4,2482.9,4.019]
[1748859383938,0.80542,2482.0,2481.9,10.36355416]
[1748859384140,3.2078,2482.2,2481.2,12.75557375]
[1748859384445,4.01345,2481.3,2481.2,1.04187368]
[1748859384643,0.8059,2480.5,2480.4,1.3287]
[1748859384849,3.2078,2480.5,2479.8,15.94831244]
[1748859385052,3.2078,2480.5,2479.8,17.27701244]
[1748859385053,4.01389,2479.9,2479.8,17.27701244]
[1748859385347,4.79882995,2479.9,2479.8,17.27701244]
[1748859385649,4.79882995,2479.9,2479.8,1.3287]
[1748859385852,6.12475729,2479.9,2479.8,1.3287]
[1748859386144,5.60490995,2479.9,2479.8,1.3287]
[1748859386348,7.21807256,2479.9,2479.8,1.3287]
[1748859386647,0.80615,2479.7,2479.6,0.00604534]
[1748859387448,3.02421261,2479.7,2479.6,0.00604534]
[1748859387651,5.36407074,2479.7,2479.6,0.00604534]
[1748859387846,4.55792074,2479.7,2479.6,0.00604534]
[1748859388045,5.36407074,2479.7,2479.6,0.00604534]
[1748859388653,2.21806261,2479.7,2479.6,0.00604534]
[1748859389150,3.02421261,2479.7,2479.6,0.00604534]
[1748859389844,25.19121261,2479.7,2479.6,0.00604534]
[1748859390043,2.21806261,2479.7,2479.6,0.00604534]
[1748859390248,3.76445906,2479.7,2479.6,0.00604534]
[1748859390447,2.21825465,2479.7,2479.6,0.00604534]
[1748859390751,3.2078,2479.9,2479.6,11.34104534]
[1748859391048,3.2078,2479.9,2479.6,0.00604534]
[1748859391351,0.80612,2479.8,2479.6,0.00604534]
[1748859391648,3.2078,2479.9,2479.6,0.00604534]
[1748859392047,3.2078,2479.9,2479.6,6.34304534]
[1748859392351,3.2078,2479.9,2479.7,40.8]
[1748859392537,3.2078,2479.9,2479.6,6.34304534]
[1748859392739,3.2078,2479.9,2479.7,6.337]
[1748859392951,3.8126,2479.9,2479.7,47.137]
[1748859393853,3.8126,2479.9,2479.8,1.2898]
[1748859394547,0.00604534,2480.1,2479.8,6.2898]
[1748859394747,3.2078,2480.2,2479.9,0.80608]
[1748859395054,0.8059,2480.5,2479.8,6.2898]
[1748859395055,0.80591,2480.5,2480.0,4.4976]
[1748859395253,0.80592,2480.4,2480.0,4.4976]
[1748859395754,22.033,2480.7,2480.3,3.2078]
[1748859395949,22.033,2480.7,2480.3,9.5468]
[1748859396161,0.80583,2480.7,2480.3,9.5468]
[1748859396450,22.82081,2480.8,2480.3,9.5468]
[1748859396648,22.81679,2480.8,2480.3,9.5468]
[1748859396853,0.00604534,2480.8,2480.3,9.5468]
[1748859397049,0.81184534,2480.8,2480.3,9.5468]
[1748859397245,22.00204534,2480.8,2480.3,10.35275]
[1748859397448,0.00604534,2480.8,2480.4,0.80591]
[1748859397647,0.6046,2480.7,2480.4,0.80592]
[1748859397842,0.6046,2480.7,2480.3,9.5468]
[1748859398350,0.6046,2480.7,2480.4,0.80592]
[1748859398554,0.00604534,2480.8,2480.5,0.80589]
[1748859398752,0.00604534,2480.8,2480.6,0.80584]
[1748859398957,0.00604534,2480.8,2480.4,1.3222]
[1748859399754,0.00604534,2480.8,2480.7,0.80582]
[1748859399959,0.00604534,2480.8,2480.6,4.01363]
[1748859400257,0.00604534,2480.8,2480.7,2.16902]
[1748859401351,0.00604534,2480.8,2480.7,8.50902]
[1748859401551,0.00604534,2480.8,2480.7,7.7032]
[1748859401753,0.00604534,2480.8,2480.7,8.50902]
[1748859402858,27.41259441,2481.5,2481.3,0.80562]
[1748859403158,4.01339,2481.5,2481.4,1.3648]
[1748859403355,5.5676596,2481.5,2481.4,1.3648]
[1748859403752,7.11386401,2481.5,2481.4,1.3648]
[1748859404555,25.85039,2481.5,2481.4,1.3648]
[1748859404756,27.40609108,2481.5,2481.4,1.3648]
[1748859404956,5.56909108,2481.5,2481.4,1.3648]
[1748859405270,5.56909108,2481.5,2481.4,2.1704]
[1748859405271,3.10431156,2481.5,2481.4,2.1704]
[1748859405465,1.55464732,2481.7,2481.6,0.60683]
[1748859405768,1.55464732,2481.7,2481.6,6.69783]
[1748859406063,0.00603684,2481.7,2481.6,11.69783]
[1748859408174,0.00603684,2481.7,2481.6,6.69683]
[1748859408671,1.55464732,2481.7,2481.6,6.69683]
[1748859409366,0.00603684,2481.7,2481.6,6.69683]
[1748859409767,2.3253338,2481.7,2481.6,6.69683]
[1748859410075,3.1308338,2481.7,2481.6,0.60683]
[1748859410378,2.3253338,2481.7,2481.6,6.69683]
[1748859410570,0.00603684,2481.7,2481.6,6.69683]
[1748859410971,0.00603684,2481.7,2481.6,6.76752789]
[1748859412373,3.14910891,2481.7,2481.6,6.16069789]
[1748859412775,0.00603684,2481.7,2481.6,0.11692504]
[1748859412979,0.00603684,2481.7,2481.6,0.92245504]
[1748859413573,0.00603684,2481.7,2481.6,6.089]
[1748859413778,3.99448383,2481.7,2481.6,6.89453]
[1748859413973,3.99448383,2481.7,2481.6,6.96522789]
[1748859414468,0.00603684,2481.7,2481.6,6.96522789]
[1748859414669,0.00603684,2481.7,2481.6,0.87622789]
[1748859416479,0.00603684,2481.7,2481.6,5.87622789]
[1748859416978,0.81154684,2481.7,2481.6,0.07069789]
[1748859417177,0.24765534,2481.7,2481.6,1.02923789]
[1748859417377,0.2471373,2481.7,2481.6,1.02923789]
[1748859417572,1.41438596,2481.7,2481.6,1.02923789]
[1748859417769,1.65548742,2481.7,2481.6,1.02923789]
[1748859418178,2.46099742,2481.7,2481.6,1.02923789]
[1748859418375,6.42849737,2481.7,2481.6,1.02923789]
[1748859418569,2.21989596,2481.7,2481.6,1.02923789]
[1748859418775,2.46122896,2481.7,2481.6,1.02923789]
[1748859418977,1.6556481,2481.7,2481.6,1.02923789]
[1748859419177,5.38297219,2481.7,2481.6,1.02923789]
[1748859419370,5.62422949,2481.7,2481.6,1.02923789]
[1748859419576,1.65564326,2481.7,2481.6,1.02923789]
[1748859420581,1.65506106,2481.7,2481.6,1.02923789]
[1748859420783,1.59984591,2481.7,2481.6,1.02923789]
[1748859420980,1.35917035,2481.7,2481.6,1.02923789]
[1748859421177,3.96858623,2481.8,2481.7,0.80551]
[1748859421373,3.41882583,2481.8,2481.7,5.31771]
[1748859421582,5.58382578,2482.3,2482.2,0.80534]
[1748859421776,5.82452587,2482.3,2482.2,0.80534]
[1748859422087,0.24070009,2482.3,2482.2,46.60534]
[1748859422285,0.80526,2482.5,2482.4,0.80528]
[1748859422481,3.44814841,2482.5,2482.1,1.3044]
[1748859422681,0.80533,2482.3,2482.2,0.80531]
[1748859422888,2.1315,2482.4,2482.3,0.80531]
[1748859423181,1.3262,2482.4,2482.3,0.80531]
[1748859423385,1.56652838,2482.4,2482.3,0.80531]
[1748859423986,1.56655385,2482.4,2482.3,0.80531]
[1748859424378,1.5663639,2482.4,2482.3,0.80531]
[1748859424577,3.2078,2482.5,2482.4,0.80528]
[1748859424784,3.44789955,2482.5,2482.4,0.80528]
[1748859424982,0.24008602,2482.5,2482.4,0.80528]
[1748859425285,3.2078,2482.9,2482.8,0.80515]
[1748859425486,3.44790828,2482.9,2482.8,0.41239994]
[1748859425687,4.72050828,2482.9,2482.8,0.41239994]
[1748859426086,4.72050828,2482.9,2482.4,5.842]
[1748859426388,0.80524,2482.6,2482.5,0.80523]
[1748859426693,0.80525,2482.5,2482.4,6.64725]
[1748859426986,1.04350639,2482.5,2482.4,6.64725]
[1748859427182,2.34240639,2482.5,2482.4,6.64725]
[1748859427389,0.80534,2482.3,2482.2,0.80533]
[1748859427592,2.62634142,2482.3,2482.2,0.80533]
[1748859427784,0.23825639,2482.3,2482.2,0.80533]
[1748859428085,2.3889103,2482.3,2482.2,0.80534]
[1748859428288,2.62718689,2482.3,2482.2,2.13734]
[1748859428587,1.1177,2482.9,2482.4,0.80528]
[1748859428788,0.80525,2482.6,2482.2,3.34534]
[1748859429085,1.04197664,2482.5,2482.4,0.80526]
[1748859429287,0.80528,2482.5,2482.4,0.80526]
[1748859429486,1.04196585,2482.5,2482.4,0.80526]
[1748859429784,0.23668585,2482.5,2482.4,0.80526]
[1748859429992,0.23662611,2482.5,2482.2,0.80531]
[1748859430185,0.80533,2482.3,2482.2,0.80531]
[1748859430485,2.17839,2482.4,2482.3,0.80531]
[1748859430680,0.80534,2482.3,2482.2,0.80532]
[1748859430985,1.04151507,2482.3,2482.2,0.80532]
[1748859431287,2.1784,2482.4,2482.3,0.80531]
[1748859431484,4.79638182,2482.4,2482.3,0.80531]
[1748859431679,4.56020512,2482.4,2482.3,0.80531]
[1748859431880,3.42330553,2482.4,2482.3,0.80531]
[1748859432076,3.18710512,2482.4,2482.3,0.80531]
[1748859432276,3.4191283,2482.4,2482.3,0.80531]
[1748859432484,3.18710512,2482.5,2482.2,1.3605]
[1748859432684,2.39355034,2482.3,2482.2,1.3605]
[1748859432983,2.39355034,2482.3,2482.2,2.16584]
[1748859433187,2.39355034,2482.3,2482.2,8.00684]
[1748859433388,3.51362245,2482.3,2482.2,8.00684]
[1748859434590,3.51188581,2482.3,2482.2,8.00684]
[1748859435289,1.11833547,2482.3,2482.2,8.00684]
[1748859435487,3.51188581,2482.3,2482.2,8.00684]
[1748859435684,1.11833547,2482.3,2482.2,8.00684]
[1748859435889,0.80534,2482.2,2482.1,0.00604534]
[1748859436087,0.80541,2482.1,2482.0,0.80539]
[1748859436394,1.92374547,2482.1,2482.0,0.80541]
[1748859436582,1.35031064,2482.1,2481.7,3.32]
[1748859436900,22.63015858,2482.0,2481.8,1.3669]
[1748859437202,21.282,2482.0,2481.9,0.80544]
[1748859437486,22.63023846,2482.0,2481.9,0.80544]
[1748859437690,1.11630595,2482.0,2481.9,0.80544]
[1748859437892,2.71319665,2482.0,2481.9,0.80544]
[1748859438089,1.11630595,2482.0,2481.9,6.64744]
[1748859438500,1.60293604,2482.1,2481.9,5.842]
[1748859438797,1.60293604,2482.1,2482.0,4.01321]
[1748859439093,1.11139878,2482.1,2482.0,5.29371]
[1748859439992,1.11139878,2482.1,2482.0,10.29371]
[1748859440885,1.11139878,2482.1,2482.0,5.29371]
[1748859441083,1.11139878,2482.1,2482.0,11.13471]
[1748859441494,1.11139878,2482.1,2482.0,2.08591]
[1748859441688,1.11139878,2482.1,2482.0,7.92691]
[1748859442093,1.11139878,2482.1,2482.0,2.08591]
[1748859442395,1.33282233,2482.1,2481.7,0.00604534]
[1748859442592,1.33282233,2482.1,2482.0,0.80541]
[1748859442593,1.60293604,2482.1,2482.0,0.80541]
[1748859442787,2.69767792,2482.1,2482.0,0.80541]
[1748859442987,1.10078722,2482.1,2482.0,0.80541]
[1748859443385,1.90616722,2482.1,2482.0,0.80541]
[1748859443584,1.10078722,2482.1,2482.0,0.80541]
[1748859443791,1.90616722,2482.1,2482.0,0.80541]
[1748859443991,0.80541,2482.0,2481.9,2.08792]
[1748859444195,1.90015188,2482.0,2481.9,2.08792]
[1748859445890,0.80544,2481.9,2481.8,0.80545]
[1748859446395,2.13025235,2481.9,2481.8,0.80545]
[1748859446587,2.13023578,2481.9,2481.8,0.80545]
[1748859446789,2.13023629,2481.9,2481.8,0.80545]
[1748859447195,1.31421151,2481.9,2481.8,0.80545]
[1748859447400,1.08217275,2481.9,2481.8,2.11605]
[1748859447698,24.89203604,2482.1,2482.0,0.80541]
[1748859448000,25.12405682,2482.1,2482.0,0.80541]
[1748859448196,25.12405682,2482.1,2481.8,2.11605]
[1748859448197,0.80544,2481.9,2481.8,2.11605]
[1748859448400,1.03746078,2481.9,2481.8,2.11605]
[1748859449096,0.80544,2481.9,2481.8,2.11605]
[1748859449297,1.03691623,2481.9,2481.8,2.11605]
[1748859449603,1.03691593,2481.9,2481.8,2.11605]
[1748859449801,0.80544,2481.9,2481.8,2.11605]
[1748859449999,0.00604534,2482.1,2482.0,0.80541]
[1748859450203,1.04294085,2482.1,2482.0,0.80541]
[1748859450602,1.04294084,2482.1,2482.0,0.80541]
[1748859450898,0.81142534,2482.1,2482.0,0.80541]
[1748859451105,1.04294808,2482.1,2482.0,0.80541]
[1748859451301,0.81142534,2482.1,2482.0,0.80541]
[1748859451505,1.04294193,2482.1,2482.0,0.80541]
[1748859451803,22.05494193,2482.1,2482.0,0.80541]
[1748859451995,0.23758455,2482.1,2482.0,0.80541]
[1748859452195,21.23659207,2482.1,2482.0,0.80541]
[1748859452397,21.00104534,2482.1,2482.0,0.80541]
[1748859452596,0.00604534,2482.1,2482.0,0.80541]
[1748859452794,0.60984534,2482.1,2482.0,0.80541]
[1748859452998,0.60984534,2482.1,2482.0,9.61421]
[1748859453601,0.60984534,2482.1,2482.0,10.98291]
[1748859454807,0.60984534,2482.1,2482.0,11.05360789]
[1748859455802,0.60984534,2482.1,2482.0,51.85360789]
[1748859458614,1.59728076,2482.6,2482.5,0.80525]
[1748859458908,25.67208076,2482.7,2482.6,0.80521]
[1748859459103,24.0748,2482.7,2482.6,0.80521]
[1748859459302,25.39233579,2482.7,2482.6,0.80521]
[1748859459504,25.16322038,2482.7,2482.6,0.80521]
[1748859459906,26.19756906,2482.7,2482.6,0.80521]
[1748859460304,26.19757903,2482.7,2482.6,0.80521]
[1748859460501,0.8053,2482.4,2482.3,0.80527]
[1748859461006,0.80534,2482.2,2482.1,2.08886]
[1748859461215,0.80534,2482.2,2482.1,2.08888]
[1748859461408,2.12294133,2482.2,2482.1,1.2835]
[1748859461604,1.89402207,2482.2,2482.1,1.2835]
[1748859461805,2.12318634,2482.2,2482.1,2.08888]
[1748859462011,1.31784786,2482.2,2482.1,2.08888]
[1748859462418,1.08868207,2482.2,2482.1,2.08888]
[1748859462712,1.31787612,2482.2,2482.1,2.08888]
[1748859463100,1.31781244,2482.2,2482.1,2.08888]
[1748859463298,2.12315244,2482.2,2482.1,2.08888]
[1748859463503,2.12316661,2482.2,2482.1,2.08888]
[1748859463709,2.1231667,2482.2,2482.1,0.80538]
[1748859464111,2.12316622,2482.2,2482.1,0.80538]
[1748859464721,1.03448415,2482.2,2482.1,0.80538]
[1748859465011,0.22914415,2482.2,2482.1,0.80538]
[1748859465316,1.08831681,2482.2,2482.1,0.80538]
[1748859465514,6.94817076,2482.4,2482.3,0.80531]
[1748859465714,8.2656173,2482.4,2482.3,0.80531]
[1748859465921,6.6683494,2482.4,2482.3,0.80531]
[1748859466605,8.03654192,2482.4,2482.3,0.80531]
[1748859466803,8.26567786,2482.4,2482.3,0.80531]
[1748859467007,8.26567561,2482.4,2482.3,0.80531]
[1748859467213,8.26567777,2482.4,2482.3,0.80531]
[1748859467614,8.2656778,2482.4,2482.3,0.80531]
[1748859467815,8.03654192,2482.4,2482.3,0.80531]
[1748859468113,1.08837116,2482.4,2482.3,0.80531]
[1748859468317,1.59728076,2482.6,2482.5,0.80525]
[1748859468515,1.59728076,2482.9,2482.8,0.80515]
[1748859468811,6.76368076,2483.0,2482.9,0.80512]
[1748859469010,6.48404697,2483.0,2482.9,0.80512]
[1748859469316,5.21163899,2483.0,2482.9,0.80512]
[1748859469509,5.21150978,2483.0,2482.9,0.80512]
[1748859469705,4.98252087,2483.0,2482.9,0.80512]
[1748859470417,5.78761087,2483.0,2482.9,0.80512]
[1748859471809,4.98252087,2483.0,2482.9,0.80512]
[1748859472309,5.78761087,2483.0,2482.9,0.80512]
[1748859473309,5.76162231,2483.0,2482.9,0.80512]
[1748859475520,4.95653231,2483.0,2482.9,0.80512]
[1748859475819,5.76162231,2483.0,2482.9,0.80512]
[1748859476712,4.95653231,2483.0,2482.9,0.80512]
[1748859477223,5.76063741,2483.0,2482.9,0.80512]
[1748859477521,4.95554741,2483.0,2482.9,0.80512]
[1748859478213,1.74774741,2483.0,2482.9,0.80512]
[1748859478522,1.7479147,2483.0,2482.9,0.80512]
[1748859479021,1.49129,2483.0,2482.9,0.80512]
[1748859479318,2.55320089,2483.0,2482.9,0.80512]
[1748859480309,0.80515,2482.8,2482.7,42.87885]
[1748859480514,0.80518,2482.7,2482.6,3.2078]
[1748859480919,1.8671912,2482.7,2482.6,3.2078]
[1748859481116,1.8671912,2482.7,2482.3,42.13859789]
[1748859481324,0.80527,2482.5,2482.4,0.80524]
[1748859481622,0.80524,2482.6,2482.5,0.80525]
[1748859481824,21.26224,2482.6,2482.5,0.80525]
[1748859482022,22.32444761,2482.6,2482.5,0.80525]
[1748859482221,0.80528,2482.5,2482.4,0.80525]
[1748859482725,0.80528,2482.4,2482.3,0.87600789]
[1748859482927,1.06234919,2482.5,2482.4,0.80528]
[1748859483119,23.6458,2482.6,2482.5,0.80525]
[1748859483320,24.7103484,2482.6,2482.5,0.80525]
[1748859483520,25.51558607,2482.6,2482.5,0.80525]
[1748859483717,0.80527,2482.5,2482.4,0.80525]
[1748859483928,1.86783607,2482.5,2482.4,0.80525]
[1748859484527,1.06256607,2482.5,2482.4,0.80525]
[1748859484728,1.06298741,2482.5,2482.4,0.80525]
[1748859485726,1.86823741,2482.5,2482.4,0.80525]
[1748859486120,1.86823741,2482.5,2482.3,1.3417]
[1748859486121,0.80528,2482.4,2482.3,2.14699]
[1748859486431,1.86826741,2482.4,2482.3,2.14699]
[1748859487022,0.80525,2482.5,2482.4,2.48181259]
[1748859487229,24.45304,2482.6,2482.5,0.80525]
[1748859487526,24.68189755,2482.6,2482.5,0.80525]
[1748859487824,0.80525,2482.5,2482.4,2.48181259]
[1748859488025,2.08665,2482.5,2482.4,2.48181259]
[1748859488831,2.08665,2482.5,2482.4,1.67653259]
[1748859489023,2.55331406,2482.5,2482.4,1.67653259]
[1748859489220,2.5533135,2482.5,2482.4,1.67653259]
[1748859489620,2.55329726,2482.5,2482.4,2.48181259]
[1748859489920,2.55329648,2482.5,2482.4,0.80528]
[1748859490226,2.32445,2482.5,2482.4,0.80528]
[1748859490428,2.55329801,2482.5,2482.4,0.80528]
[1748859490830,2.55328437,2482.5,2482.4,0.80528]
[1748859491031,2.32445,2482.5,2482.4,0.80528]
[1748859491332,0.80541,2482.1,2482.0,0.80535]
[1748859491531,6.5192,2482.5,2482.2,0.80535]
[1748859491532,3.2078,2482.3,2482.2,0.80535]
[1748859491728,0.2378,2482.5,2482.4,0.80528]
[1748859491922,20.7796234,2482.5,2482.4,0.80528]
[1748859492234,2.0623739,2482.5,2482.2,3.31282]
[1748859492435,20.55178645,2482.4,2482.3,1.2995]
[1748859492624,21.35706645,2482.4,2482.3,2.10479]
[1748859493131,21.35703711,2482.4,2482.3,2.10479]
[1748859493330,21.35703708,2482.4,2482.3,2.10479]
[1748859493634,21.35705275,2482.4,2482.3,2.10479]
[1748859493931,0.80528,2482.4,2482.3,2.10479]
[1748859494136,21.33803217,2482.4,2482.3,2.10479]
[1748859494831,21.33803302,2482.4,2482.3,2.10479]
[1748859495030,21.33803379,2482.4,2482.3,2.10479]
[1748859495229,21.10928,2482.4,2482.3,2.10479]
[1748859495431,22.54603172,2482.4,2482.0,5.92937]
[1748859495643,0.80538,2482.2,2482.1,0.80535]
[1748859495832,0.80538,2482.2,2482.1,2.16175]
[1748859496337,4.01318,2482.2,2482.1,1.3564]
[1748859496533,4.01318,2482.2,2482.1,2.16178]
[1748859497436,0.80541,2482.1,2481.9,1.1474]
[1748859497632,0.80541,2482.1,2482.0,0.80538]
[1748859498941,4.01316,2482.2,2482.1,0.80538]
[1748859499132,1.05494183,2482.2,2482.1,0.80538]
[1748859499339,4.25086,2482.5,2482.2,2.01332]
[1748859499538,24.47686,2482.5,2482.4,0.80528]
[1748859499834,25.76062541,2482.5,2482.4,0.80528]
[1748859500238,24.95536541,2482.5,2482.4,0.80528]
[1748859500538,4.50070793,2482.5,2482.4,0.80528]
[1748859500841,4.50070793,2482.5,2482.4,1.89358]
[1748859501139,1.29290793,2482.5,2482.4,1.89358]
[1748859501339,2.09815793,2482.5,2482.4,2.3803]
[1748859501738,2.09815793,2482.5,2482.4,1.292]
[1748859501936,2.09815793,2482.5,2482.4,2.09728]
[1748859502742,2.0984113,2482.5,2482.4,2.09728]
[1748859503339,1.2931613,2482.5,2482.4,2.09728]
[1748859503843,1.2931613,2482.5,2482.1,0.07069789]
[1748859503844,0.80535,2482.2,2482.1,0.07069789]
[1748859504048,11.6372605,2482.2,2482.1,0.07069789]
[1748859504235,7.69048844,2482.2,2482.1,0.07069789]
[1748859504435,6.63546263,2482.2,2482.1,0.07069789]
[1748859504645,6.88571832,2482.2,2482.1,0.87607789]
[1748859504845,27.88906832,2482.2,2482.1,0.87607789]
[1748859505044,27.88906832,2482.2,2482.1,0.07069789]
[1748859505045,29.4848025,2482.2,2482.1,0.07069789]
[1748859505235,27.09136149,2482.2,2482.1,0.07069789]
[1748859505441,27.0912563,2482.2,2482.1,0.07069789]
[1748859505635,6.89325506,2482.2,2482.1,0.07069789]
[1748859505842,4.49217589,2482.2,2482.1,0.87607789]
[1748859506147,4.2631613,2482.2,2482.1,0.87607789]
[1748859506538,4.25433905,2482.2,2482.1,2.17517789]
[1748859507351,1.04653905,2482.2,2482.1,2.17517789]
[1748859507540,1.04653905,2482.2,2482.1,10.38297789]
[1748859507745,3.2078,2482.6,2482.5,0.80525]
[1748859508049,4.25483974,2482.6,2482.5,0.80525]
[1748859508252,4.25483974,2482.6,2482.4,2.10436]
[1748859508253,0.80525,2482.5,2482.4,2.10436]
[1748859508550,4.01302,2482.6,2482.4,1.2991]
[1748859508746,3.2078,2482.6,2482.5,0.80525]
[1748859508941,4.25521446,2482.6,2482.5,1.93355]
[1748859509645,4.67537519,2483.0,2482.6,2.01304]
[1748859509846,0.6862,2483.0,2482.9,0.80512]
[1748859510657,0.91545191,2483.0,2482.9,0.80512]
[1748859510848,0.91545128,2483.0,2482.9,2.20072]
[1748859511047,1.49129,2483.0,2482.9,2.20072]
[1748859511452,1.7205476,2483.0,2482.9,1.3956]
[1748859511645,1.7205476,2483.0,2482.9,6.5196]
[1748859512050,1.72055079,2483.0,2482.9,6.5196]
[1748859512251,1.7204944,2483.0,2482.9,6.5196]
[1748859512549,1.72048039,2483.0,2482.9,6.5196]
[1748859512852,1.94966847,2483.0,2482.9,6.5196]
[1748859513049,1.94966847,2483.0,2482.9,7.32472]
[1748859513349,1.72047928,2483.0,2482.9,7.32472]
[1748859513650,1.72047928,2483.0,2480.1,12.44375984]
[1748859513651,1.14451108,2483.0,2480.1,12.44375984]
[1748859513957,3.2078,2480.2,2479.5,5.62075891]
[1748859514150,3.2078,2479.6,2478.9,0.10580775]
[1748859514345,0.6045,2480.1,2478.9,0.10580775]
[1748859514547,3.2078,2479.4,2478.6,8.67825]
[1748859514754,3.2078,2479.0,2478.9,0.80641]
[1748859514955,0.00604534,2479.2,2479.1,0.80635]
[1748859515153,3.2078,2480.0,2479.7,0.80613]
[1748859515451,3.2078,2480.0,2479.0,5.22371]
[1748859515452,3.2078,2480.0,2479.9,1.29098364]
[1748859515665,3.2078,2480.0,2479.9,48.75498364]
[1748859516656,3.2078,2480.0,2479.9,52.464]
[1748859516852,3.2078,2480.0,2479.9,53.75498364]
[1748859518857,3.2078,2480.0,2479.9,53.75598364]
[1748859519856,1.015,2480.0,2479.9,53.75598364]
[1748859520452,1.015,2480.0,2479.9,48.75598364]
[1748859521461,1.41053,2480.1,2479.9,48.75598364]
[1748859521657,0.6045,2480.1,2480.0,3.39594364]
[1748859521954,0.6045,2480.1,2480.0,5.79768364]
[1748859522461,1.41053,2480.1,2480.0,5.79768364]
[1748859522664,1.41053,2480.1,2480.0,2.58988364]
[1748859523659,0.6045,2480.1,2480.0,2.58988364]
[1748859523857,1.41053,2480.1,2480.0,2.58988364]
[1748859524867,0.6045,2480.1,2480.0,2.58988364]
[1748859525053,0.6045,2480.1,2480.0,9.25588364]
[1748859525461,1.41053,2480.1,2480.0,9.25588364]
[1748859525765,1.41053,2480.1,2480.0,2.58988364]
[1748859525970,4.01379,2480.2,2480.1,2.68387]
[1748859526162,26.54579,2480.2,2480.1,3.97485364]
[1748859526350,3.2078,2480.2,2480.1,4.78088364]
[1748859526661,2.01461,2480.7,2480.2,0.80599]
[1748859526662,0.80597,2480.3,2480.2,0.80599]
[1748859526958,0.80595,2480.4,2480.3,1.29098364]
[1748859527170,3.2078,2480.8,2480.7,0.80583]
[1748859527353,0.80573,2481.0,2480.9,1.29098364]
[1748859527552,0.80573,2481.0,2480.9,7.95798364]
[1748859527855,0.80573,2481.0,2480.9,6.667]
[1748859528763,0.80584,2480.7,2480.5,43.8097]
[1748859528958,0.80577,2480.9,2480.6,0.80584]
[1748859529267,0.80577,2480.9,2480.5,43.8097]
[1748859529268,0.80577,2480.9,2480.8,1.29098364]
[1748859529451,4.01357,2480.9,2480.8,1.29098364]
[1748859529657,4.01357,2480.9,2480.8,2.75258364]
[1748859530563,3.2078,2480.9,2480.8,3.55838364]
[1748859530758,3.2078,2481.2,2481.1,0.8057]
[1748859531154,3.2078,2481.2,2481.1,2.09668364]
[1748859532868,4.01347,2481.2,2481.1,1.29098364]
[1748859533171,3.2078,2481.2,2481.1,2.09668364]
[1748859535362,4.01347,2481.2,2481.1,8.76268364]
[1748859535566,3.2078,2481.2,2481.1,8.76268364]